Cogmind - Beta 16 @@@ ROGUE MODE // 2025.11.19 @ 22:01:44 Player: Lazz Result: Destroyed by Y-54 Guardian with Gatling Laser Performance ------------- Evolutions (3) 1500 Regions Visited (4) 800 Robots Destroyed (44) 220 Value Destroyed (1120) 1120 Prototype IDs (8) 160 Alien Tech Used (0) 0 Bonus (0) 0 TOTAL SCORE: 3800 Bonus ------- None Cogmind --------- Core Integrity 0/700 Matter 293/300 Energy 100/100 System Corruption 1% Temperature Cool (12) Movement Core (350) Ox6 Location -7/Factory Parts ------- > --- POWER (1) -------- (None) > --- PROPULSION (3) --- (None) > --- UTILITY (6) ------ Large Storage Unit > --- WEAPON (3) ------- (None) > --- INVENTORY (15) --- Large Storage Unit Mining Laser Peak State ------------ > --- POWER ------------ (None) > --- PROPULSION ------- Improved Treads Aluminum Leg > --- UTILITY ---------- Advanced Heat Sink Large Storage Unit Seismic Detector Improved Light Armor Plating Improved Medium Armor Plating > --- WEAPON ----------- Spread Laser Plasma Cannon Plasma Cannon > --- INVENTORY -------- Large Storage Unit Beam Rifle Light Assault Rifle Rocket Launcher Mining Laser Power Maul [Rating: 28] Favorites ----------- Power Light Ion Engine Engine Light Ion Engine Propulsion Improved Treads Treads Improved Treads Leg Aluminum Leg Utility Large Storage Unit Device Seismic Detector Storage Large Storage Unit Processor Signal Interpreter Protection Core Shielding Weapon Spread Laser Energy Gun Spread Laser Energy Cannon Plasma Cannon Ballistic Gun Light Assault Rifle Launcher Rocket Launcher Special Weapon Mining Laser Impact Weapon Power Maul Build | -11 -10 -9 -8 -7 ------- Run | Yrd Mat Mat Mat Fac Slots Evolved 6 | . . 2 2 2 Power . | . . . . . Propulsion 1 | . . . 1 . Utility 4 | . . 1 1 2 Weapon 1 | . . 1 . . Parts Attached 40 | 6 3 14 8 9 Power 4 | 1 . 1 1 1 Engine 4 | 1 . 1 1 1 Core . | . . . . . Reactor . | . . . . . Propulsion 11 | 2 . 4 3 2 Treads 7 | . . 4 3 . Leg 4 | 2 . . . 2 Wheel . | . . . . . Hover . | . . . . . Flight . | . . . . . Utility 12 | 1 2 4 2 3 Device 3 | . 1 . 1 1 Storage 3 | 1 1 1 . . Processor 1 | . . 1 . . Hackware . | . . . . . Protection 5 | . . 2 1 2 Artifact . | . . . . . Weapon 13 | 2 1 5 2 3 Energy Gun 6 | 1 . 3 . 2 Energy Cannon 2 | . . . 2 . Ballistic Gun 2 | 1 . 1 . . Ballistic Cannon . | . . . . . Launcher 1 | . . 1 . . Special Weapon 1 | . 1 . . . Impact Weapon 1 | . . . . 1 Slashing Weapon . | . . . . . Piercing Weapon . | . . . . . Special Melee Weapon . | . . . . . Unidentified Prototypes 1 | . . 1 . . Parts Lost 26 | . . 2 10 14 Power 3 | . . 1 1 1 Propulsion 6 | . . . 3 3 Utility 7 | . . 1 3 3 Weapon 10 | . . . 3 7 Highest Loss Streak 9 | . . 1 8 9 To Critical Strikes . | . . . . . Average Backups 8 | 4 6 9 11 5 Power . | . 1 . . . Propulsion 2 | 1 2 3 2 . Utility 1 | . 1 1 2 1 Weapon 4 | 1 2 3 6 4 Tool/Special . | . . . . . Unused Backups 2 | 1 . 1 . . Power 1 | 1 . . . . Propulsion 1 | . . 1 . . Utility . | . . . . . Weapon . | . . . . . Tool/Special . | . . . . . Average Slot Usage (%) 84 | . 100 93 89 60 Engine 6 | . 14 6 7 . Treads 14 | . . 15 24 5 Leg 6 | . 28 5 . 8 Device 7 | . 14 5 6 11 Storage 9 | . 14 11 9 7 Processor 3 | . . 5 6 . Protection 7 | . . 10 8 7 Energy Gun 18 | . 14 22 25 7 Energy Cannon 2 | . . . . 8 Ballistic Gun 4 | . 11 8 . . Peak Build Rating 28 | 6 7 16 25 28 Average Rating 15 | 4 7 11 19 21 On Entrance 7 | . 6 7 16 7 Avg Prop Armor Cover (%) 5 | . . . . 5 Naked Turns . | . . . . . Heaviest Build 49 | 11 17 33 46 49 Greatest Support 66 | 20 20 43 66 25 Greatest Overweight (x) 11 | 1 . 1 11 9 Average Overweight (x) . | . . . . 1 Largest Inventory Capacity 15 | 8 10 15 15 15 Average Capacity 12 | 7 8 10 15 15 Most Carried 15 | 8 8 10 15 12 Average Carried 8 | 4 6 9 11 5 Final Capacity 15 | 8 10 15 15 15 Final Carried 13 | 6 8 10 13 2 Class Distribution -------------------- 45% | Tank 29% | Mutant 22% | Scavenger-Tank Dominant Class ---------------- Mutant | -10/Materials Tank | -9/Materials Scavenger-Tank | -8/Materials Mutant | -7/Factory Resources | -11 -10 -9 -8 -7 ----------- Run | Yrd Mat Mat Mat Fac Matter Collected 691 | 252 38 246 30 125 Remotely . | . . . . . Salvage Created 1561 | 156 146 545 313 401 Parts 78 | 16 5 34 13 10 Haulers Intercepted 5 | . 1 3 1 . Recyclers Shooed 2 | . . 1 . 1 Parts Field Recycled . | . . . . . Retrieved Matter . | . . . . . Parts Self-Destructed . | . . . . . Prevented . | . . . . . Parts Restored . | . . . . . Kills | -11 -10 -9 -8 -7 ------- Run | Yrd Mat Mat Mat Fac Combat Hostiles Destroyed 27 | . 3 11 5 8 Melee 3 | . . . . 3 Guns 17 | . 3 9 5 . Cannons 1 | . . . . 1 AOE 5 | . . 2 . 3 Classes Destroyed 11 | 2 3 5 1 . Worker 2 | . . 1 . 1 Builder 1 | . . 1 . . Tunneler 4 | 4 . . . . Hauler 5 | . 1 3 1 . Recycler 2 | 1 . . . 1 Operator 1 | . . 1 . . Watcher 2 | . . 1 1 . Swarmer 6 | . 1 3 . 2 Grunt 16 | . 2 7 3 4 Duelist 2 | . . 1 . 1 Sentry 3 | . . . 2 1 Best Kill Streak 6 | 3 2 6 2 3 Combat Bots Only 6 | . 2 6 2 3 Max Kills in Single Turn 3 | 1 1 3 1 2 Gunslinging . | . . . . . Exploded 2 | . . 2 . 2 Melee 1 | . . . . 1 Uniques/NPCs Destroyed . | . . . . . Combat | -11 -10 -9 -8 -7 -------- Run | Yrd Mat Mat Mat Fac Hostile Shots Fired 410 | . 41 34 66 269 Missed 130 | . 14 12 15 89 Hits 280 | . 27 22 51 180 Melee 8 | . . 7 . 1 Projectile 272 | . 27 15 51 179 AOE 1 | . . . 1 . Critical Strikes 11 | . . 1 8 2 Damage Taken 4091 | . 285 425 1443 1938 Core 1160 | . 72 40 348 700 Absorbed by Shields . | . . . . . Redirected to Shielding 2 | . . . 2 . Core Remaining (%) 74 | 100 71 90 36 . Volleys Fired 106 | 12 16 38 27 13 Largest 3 | 2 2 3 3 3 Hottest 225 | 70 100 177 177 225 Shots Fired 245 | 24 28 91 81 21 Gun 234 | 24 24 89 81 16 Cannon 4 | . . . . 4 Launcher 2 | . . 1 . 1 Special 5 | . 4 1 . . Kinetic 56 | 12 12 26 . 6 Thermal 187 | 12 16 64 81 14 Explosive 2 | . . 1 . 1 Electromagnetic . | . . . . . Robot Hit Streak 14 | 9 7 12 14 6 Robot Miss Streak 16 | 1 3 5 16 3 Penetration Max . | . . . . . Secondary Targets 1 | . 1 . . . Max Gunslinging Chain 1 | . 1 . . . Shots Hit Robots 174 | 16 18 61 52 27 Core Hits 121 | 7 7 52 32 23 Critical Kills 2 | . . . . 2 Critical Parts Destroyed . | . . . . . Critical Strikes 11 | 2 2 3 1 3 Burn 8 | 2 2 3 1 . Meltdown 1 | . . . . 1 Smash 2 | . . . . 2 Melee Attacks 13 | . . . . 13 Impact 13 | . . . . 13 Slashing . | . . . . . Piercing . | . . . . . Sneak Attacks . | . . . . . Combat Hostiles . | . . . . . Follow-up Attacks . | . . . . . Damage Inflicted 3228 | 183 180 965 758 1142 Guns 2105 | 183 180 784 758 200 Cannons 51 | . . . . 51 Explosions 592 | . . 181 . 411 Melee 461 | . . . . 461 Ramming 19 | . . . . 19 Kinetic 333 | 72 80 130 . 51 Thermal 1823 | 111 100 654 758 200 Explosive 592 | . . 181 . 411 Electromagnetic . | . . . . . Impact 461 | . . . . 461 Slashing . | . . . . . Piercing . | . . . . . Highest Corruption 1 | . . 1 . 1 Average Corruption 1 | . . 1 . 1 Corruption Purged . | . . . . . Corruption Blocked . | . . . . . Effects 1 | . . 1 . . Heat Flow Errors 1 | . . 1 . . Overload Shots . | . . . . . Overflow Damage 24 | . . 1 . 23 Projectiles . | . . . . . Explosions 10 | . . 1 . 9 Melee 14 | . . . . 14 Knockbacks 1 | . . . . 1 Impact 1 | . . . . 1 Kinetic . | . . . . . Secondary . | . . . . . Self-Inflicted Damage 128 | . . . . 128 Shots 2 | . . . . 2 Rammed 4 | . . 1 . 3 Targets Rammed 6 | . . 1 . 5 Kicked 2 | . . . . 2 Crushed . | . . . . . Highest Temperature 377 | 130 110 377 326 72 Average Temperature 100 | 56 31 122 122 26 Received Heat Transfer 1182 | . 120 72 372 618 Effects 5 | . . 5 . . Energy Bleed 3 | . . 3 . . Interference 2 | . . 2 . . Siege Activations . | . . . . . Martial Activations . | . . . . . Shielding Activations . | . . . . . Robots Disrupted . | . . . . . Combat Hostiles . | . . . . . Robots Corrupted . | . . . . . Combat Hostiles . | . . . . . Parts Fried . | . . . . . Impact Corruptions 1 | . . . . 1 Robots Melted 1 | . . . . 1 Combat Hostiles 1 | . . . . 1 Parts Melted 7 | . 1 2 2 2 Heat Transferred 4324 | 481 444 1593 1482 324 Parts Sabotaged . | . . . . . Parts Stolen . | . . . . . Parts Stripped . | . . . . . Power Chain Reactions . | . . . . . Alert | -11 -10 -9 -8 -7 ------- Run | Yrd Mat Mat Mat Fac Maximum Alert Level . | . . . . . Low Security (%) 100 | 100 100 100 100 100 Level 1 . | . . . . . Level 2 . | . . . . . Level 3 . | . . . . . Level 4 . | . . . . . Level 5 . | . . . . . High Security . | . . . . . Max Security . | . . . . . Peak Influence 115 | 10 58 115 79 85 Initial 27 | . 3 11 27 . Average 28 | 2 29 42 28 17 Influence Increases 1000 | 25 104 362 257 252 Destroy 0b10 Robot/C 540 | . 60 220 100 160 Destroy 0b10 Robot/NC 85 | 25 5 35 10 10 Destroy Leader 154 | . 22 58 44 30 Successful Hack 46 | . 13 9 12 12 Disable Machine 30 | . . 15 . 15 Destroy Structure 40 | . 4 10 1 25 Lose Combat Pursuer 105 | . . 15 90 . Influence Decreases 972 | 20 80 326 322 224 Entered New Map 58 | . 2 18 38 . Time Decay 535 | 20 78 168 185 84 Lost Part 227 | . . 20 67 140 Purge Threat 152 | . . 120 32 . Squads Dispatched 13 | . 4 4 2 3 Investigation 4 | . 3 1 . . Extermination . | . . . . . Reinforcement 6 | . 1 3 1 1 Assault . | . . . . . Garrison 3 | . . . 1 2 Intercept . | . . . . . Searches Triggered . | . . . . . Construction Impeded 1 | . . . . 1 Haulers Reinforced . | . . . . . Active Scanning Responses . | . . . . . Cargo Convoy Interrupts . | . . . . . Stealth | -11 -10 -9 -8 -7 --------- Run | Yrd Mat Mat Mat Fac Distress Signals 7 | . 2 1 2 2 Communications Jammed . | . . . . . Distress Signals . | . . . . . Times Spotted 60 | . 13 18 16 13 Peak Tracking Total 7 | . 7 5 6 6 Tactical Retreats 5 | . . 1 4 . Traps | -11 -10 -9 -8 -7 ------- Run | Yrd Mat Mat Mat Fac Traps Triggered 3 | . 1 1 . 1 Indirectly . | . . . . . Trap Hack Attempts . | . . . . . Triggered . | . . . . . Disarmed 5 | . 5 . . . Reprogrammed . | . . . . . Reused . | . . . . . Traps Extracted . | . . . . . Installed . | . . . . . Triggered . | . . . . . Machines | -11 -10 -9 -8 -7 ---------- Run | Yrd Mat Mat Mat Fac Machines Disabled 2 | . . 1 . 1 Max in Single Turn 1 | . . 1 . 1 Machines Repaired . | . . . . . Machines Dismantled . | . . . . . Machines Sabotaged . | . . . . . Overloaded Fab Kills . | . . . . . Hacking | -11 -10 -9 -8 -7 --------- Run | Yrd Mat Mat Mat Fac Machines Accessed 12 | . 3 5 3 1 Terminals 10 | . 3 5 2 . Fabricators . | . . . . . Repair Stations . | . . . . . Recycling Units . | . . . . . Scanalyzers 2 | . . . 1 1 Garrison Access . | . . . . . Total Hacks 37 | . 13 14 8 2 Successful 14 | . 4 5 4 1 Failed 23 | . 9 9 4 1 Catastrophic 6 | . 2 3 1 . Database Lockouts . | . . . . . Manual 11 | . . 7 4 . Terminals 33 | . 13 14 6 . Fabricators . | . . . . . Repair Stations . | . . . . . Recycling Units . | . . . . . Scanalyzers 4 | . . . 2 2 Garrison Access . | . . . . . Terminal Hacks 13 | . 4 5 4 . Part Schematic 1 | . . . 1 . Prototype ID Bank 4 | . 1 2 1 . Level Access Points 1 | . 1 . . . Emergency Access Points 1 | . . 1 . . Unreport Threat 2 | . . 1 1 . Disarm Traps 2 | . 2 . . . Zone Layout 2 | . . 1 1 . Fabricator Hacks . | . . . . . Repair Station Hacks . | . . . . . Recycling Unit Hacks . | . . . . . Scanalyzer 1 | . . . . 1 Retrieve Study 1 | . . . . 1 Garrison Access Hacks . | . . . . . Unauthorized Hacks . | . . . . . Terminals . | . . . . . Fabricators . | . . . . . Repair Stations . | . . . . . Recycling Units . | . . . . . Scanalyzers . | . . . . . Garrison Access . | . . . . . Data Cores Recovered . | . . . . . Used . | . . . . . Hacking Detections 12 | . 3 5 3 1 Full Trace Events 4 | . 2 2 . . Feedback Events . | . . . . . Feedback Blocked . | . . . . . Robot Schematics Acquired . | . . . . . Robots Built . | . . . . . Authchips . | . . . . . Time . | . . . . . Total Robot Build Rating . | . . . . . Part Schematics Acquired 1 | . . . 1 . Parts Built . | . . . . . Authchips . | . . . . . Time . | . . . . . Total Part Build Rating . | . . . . . Part Studies Acquired 1 | . . . . 1 Parts Repaired . | . . . . . Time . | . . . . . Parts Recycled . | . . . . . Recycled Matter . | . . . . . Retrieved Matter . | . . . . . Retrieved Components . | . . . . . Parts Scanalyzed . | . . . . . Part Schematics Acquired . | . . . . . Parts Damaged . | . . . . . Bothacking | -11 -10 -9 -8 -7 ------------ Run | Yrd Mat Mat Mat Fac Used RIF Installer . | . . . . . Robots Hacked . | . . . . . Non-combat . | . . . . . Combat . | . . . . . Robot Hacks Applied . | . . . . . Relay Couplers Released . | . . . . . Fabnet Peak Effective % . | . . . . . Robots Rewired . | . . . . . Allies Hacked . | . . . . . Hacks Repelled . | . . . . . Allies | -11 -10 -9 -8 -7 -------- Run | Yrd Mat Mat Mat Fac Total Allies . | . . . . . Largest Group . | . . . . . Highest-Rated Group . | . . . . . Highest-Rated Ally . | . . . . . Total Orders . | . . . . . Ally Attacks . | . . . . . Total Damage . | . . . . . Kills . | . . . . . Allies Corrupted . | . . . . . Allies Melted . | . . . . . Intel | -11 -10 -9 -8 -7 ------- Run | Yrd Mat Mat Mat Fac Active Infowar (turns) 776 | . 166 280 . 330 Seismic 776 | . 166 280 . 330 Robot Analysis Total . | . . . . . Derelict Logs Recovered . | . . . . . Drone Launches . | . . . . . Drone Recoveries . | . . . . . Exploration | -11 -10 -9 -8 -7 ------------- Run | Yrd Mat Mat Mat Fac Turns Passed 1910 | 118 166 621 542 463 Spaces Moved 761 | 60 92 280 184 145 Core 30 | 23 . . 5 2 Treads 498 | . . 217 179 102 Legs 233 | 37 92 63 . 41 Wheels . | . . . . . Hover . | . . . . . Flight . | . . . . . Fastest Speed 50 | 50 120 120 160 190 Average Speed 165 | 110 120 161 169 221 Slowest Speed 600 | 120 120 190 600 500 Overloaded Moves . | . . . . . Propulsion Burnouts . | . . . . . Robots Hopped . | . . . . . Potential Cave-ins . | . . . . . Cave-ins Triggered . | . . . . . Exploration Rate (%) 20 | 4 32 36 23 5 Regions Visited 4 Branch Regions . Pre-discovered Areas . | . . . . . Known Exits Taken 2 | . 1 1 . . Unknown Exits Taken 2 | 1 . . 1 . Scrap Searched . | . . . . . Spaces Dug 4 | . 4 . . . Terrain Destroyed 36 | . 4 9 . 23 Melee . | . . . . . Projectile 4 | . 4 . . . AOE 32 | . . 9 . 23 Terrain Rammed . | . . . . . Walls Destroyed . | . . . . . Machines Disabled . | . . . . . Actions | -11 -10 -9 -8 -7 --------- Run | Yrd Mat Mat Mat Fac Total 1178 | 90 114 381 357 236 Wait 193 | . . 23 127 43 Move 757 | 59 91 279 183 145 Hop . | . . . . . Pick Up 40 | 12 3 12 10 3 Fast Attach 4 | 1 . 3 . . Attach 34 | 5 1 7 7 14 Detach 1 | . . 1 . . Swap 12 | . 2 9 1 . Drop 12 | 1 1 8 2 . Fire 106 | 12 16 38 27 13 Melee 13 | . . . . 13 Ram 2 | . . . . 2 Kick 2 | . . . . 2 Crush 2 | . . 1 . 1 Escape Stasis . | . . . . . Rewire . | . . . . . Trap . | . . . . . Miscellaneous . | . . . . . Route ------- -11/Scrapyard -10/Materials (discovered 3 exits: *Mat x3) -9/Materials (discovered 2 exits: *Mat / *Min) -8/Materials -7/Factory History --------- Turn | Location | Event 15 | -11/Scrapyard | Discovered new exit (range 15) 119 | -11/Scrapyard | Entered Materials 120 | -10/Materials | Met a group of wandering Federalists 187 | -10/Materials | Identified exit to Materials 285 | -10/Materials | Entered another Materials area 285 | -9/Materials | Evolved 2 slots: Utility x1, Weapon x1 519 | -9/Materials | Discovered new exit (range 16) 566 | -9/Materials | Identified exit to Mines 586 | -9/Materials | Build established: Tank 880 | -9/Materials | Discovered new exit (range 15) 904 | -9/Materials | Identified exit to Materials 906 | -9/Materials | Entered another Materials area 906 | -8/Materials | Evolved 2 slots: Propulsion x1, Utility x1 1095 | -8/Materials | Garrison activated, responded to threat 1194 | -8/Materials | Build established: Scavenger-Tank 1377 | -8/Materials | Discovered new exit (range 16) 1441 | -8/Materials | Core integrity fell below 50% 1448 | -8/Materials | Entered Factory 1448 | -7/Factory | Evolved 2 slots: Utility x2 1466 | -7/Factory | Lost 8 parts (1p3n1u3w) 1762 | -7/Factory | Garrison activated, responded to threat 1843 | -7/Factory | Lost 5 parts (1n2u2w) 1879 | -7/Factory | Core integrity fell below 50% 1897 | -7/Factory | Core integrity fell below 20% 1911 | -7/Factory | Destroyed by Y-54 Guardian with Gatling Laser Last Messages --------------- 01902_ K-01 Serf collects debris. 01903_ Power Maul destroyed. 01903_ U-05 Engineer lays Concrete. 01903_ Slammed into G-47 Trooper. 01904_ K-01 Serf collects debris. 01905_ U-05 Engineer lays Concrete. 01905_ K-01 Serf collects debris. 01906_ U-05 Engineer lays Concrete. 01906_ Slammed into G-47 Trooper. 01907_ U-05 Engineer lays Concrete. 01907_ Y-54 Guardian suffers critical hit (Burn). 01907_ U-05 Engineer builds a Wall. 01907_ K-01 Serf destroyed. 01908_ U-05 Engineer lays Concrete. 01908_ K-01 Serf collects debris. 01908_ U-05 Engineer builds a Wall. 01909_ G-47 Trooper misfires. 01910_ U-05 Engineer lays Concrete. 01910_ U-05 Engineer builds a Wall. Map ----- +----------------------------------------------------+ | #?????????????????????????????????????????? | | #?????? ???? ??? ????????????????????????? | | " "" #????? # """ ??????????????????????? | | " "" #????? #??????????????????????? | | "" """ #????# #??????????????????????? | | "" """ #????# # ??????????????????????? | | "" """ ###### # ##?????????????????????? | | + + ##????????????????????? | | ###### ?????????????????????? | | #????# ##?????????????????????? | | #????# #?????????????????????? | | #+########### #####?###+#????????????? | | # ????????????? | | %% # ????????????? | | # ## *" """"???????????? | | # % ##!=""" """" "?????????? | | # %% ##=%G """" "?????????? | | ############# # % ## """ ??????????? | | ????????????# ###+##### " """"???????????? | | ????????????# """"???????????? | | ????????????# ^ """" """ ??????? | | ????????????# ?????? | | ????????????# =%= ?????? | | ????????????# %! ?????? | | ????????????################u#######+######??????? | | ?????????????????????# @ Yku# ! ??????? | | ?????????????????????# g%u u# ??????? | | ?????????????????????# ! # """" ""?????????? | | ?????????????????????#! ! # """"????????????? | | ?????????????????????# #? """"????????????? | | ?????????????????????# ! !#???""?????????????? | | ?????????????????????# #????"?????????????? | | ?????????????????????# #??????????????????? | | ?????????????????????# #??????????????????? | | ?????????????????????##########??????????????????? | | ?????????????????????????????????????????????????? | | ?????????????????????????????????????????????????? | | ?????????????????????????????????????????????????? | | ?????????????????????????????????????????????????? | | ?????????????????????????????????????????????????? | | ?????????????????????????????????????????????????? | | ?????????????????????????????????????????????????? | | ?????????????????????????????????????????????????? | | ?????????????????????????????????????????????????? | | ?????????????????????????????????????????????????? | | ?????????????????????????????????????????????????? | | ?????????????????????????????????????????????????? | | ?????????????????????????????????????????????????? | | ?????????????????????????????????????????????????? | | ?????????????????????????????????????????????????? | +----------------------------------------------------+ Best States ------------- Heat Dissipation 53 Energy Generation 18 Energy Capacity 150 Matter Stores 300 Matter Capacity 300 Sight Range 16 Terrain Scan Density 10 Armor Coverage 375 Core Shielding 20 Evasion (%) 55 Recoil Reduction 3 Item Schematics ----------------- Hcp. Storage Unit | -8/Materials | Hacked Robot Schematics ------------------ None Fabricated ------------ Nothing Repaired ---------- Nothing Studied --------- Imp. Treads | -7/Factory | Hacked Alien Tech Used ----------------- None Achievements -------------- Batter Up Challenges ------------ None Game ------ Seed ShiftCatalystProtection Manual? 0 Play Time 00:21:19 Cumulative 90.8 hours Start 2025.11.19 @ 21:41:07 End 2025.11.19 @ 22:01:44 Sessions 1 Manual Loads 0 Difficulty Rogue Special Mode None Game No. 127 Rogue 127 Adventurer 0 Explorer 0 Win Type - Total 1 Types 1/0/0/0/0/0/0/0/0/0 Lore% 55 Gallery% 52 Achievement% 39 Wizard Run 0 Options --------- Layout 2 ASCII 0 Keyboard 0 Movement Mouse Keybinds 0 Fullscreen 1 Font 16/SmallcapsGlow Map View 25x24 Zoom Use 100% Tactical HUD 1 Map Filters NONE Filters NONE Steam SD RUN: 8979e9e6-f51f-4df8-844d-3e16603d3ddf